bitfinex/quotes_BTCUSD_20241124
["timestamp","ask_amount","ask_price","bid_price","bid_amount"]
[1732468322942,0.104278,95898.0,95886.0,0.041716]
[1732468322943,0.10151427,95898.0,95890.0,0.041714]
[1732468323156,0.104281,95895.0,95890.0,0.041714]
[1732468323579,0.104281,95895.0,95891.0,0.041713]
[1732468324013,0.104279,95896.0,95890.0,0.041714]
[1732468324336,0.10428,95896.0,95890.0,0.041714]
[1732468324532,0.104281,95895.0,95890.0,0.041714]
[1732468324990,0.10151427,95898.0,95891.0,0.041713]
[1732468325196,0.104278,95897.0,95892.0,0.041713]
[1732468325406,0.20579127,95898.0,95892.0,0.041713]
[1732468325620,0.10151427,95898.0,95893.0,0.041713]
[1732468325833,0.10151427,95898.0,95894.0,0.041712]
[1732468326108,0.10708483,95907.0,95891.0,0.00074259]
[1732468326362,0.0422843,95905.0,95904.0,0.041708]
[1732468326599,0.10201427,95907.0,95904.0,0.041708]
[1732468326835,0.10201427,95907.0,95906.0,0.041707]
[1732468327046,0.10201427,95907.0,95904.0,0.041708]
[1732468327290,0.10201427,95907.0,95890.0,0.0777]
[1732468327291,0.10201427,95907.0,95898.0,0.04171]
[1732468327531,0.208537,95906.0,95890.0,0.0777]
[1732468327764,0.10428,95896.0,95890.0,0.119414]
[1732468327974,0.0017138,95898.0,95894.0,0.041712]
[1732468328209,0.1059918,95898.0,95892.0,0.041713]
[1732468328410,0.0017138,95898.0,95894.0,0.041712]
[1732468328643,0.0017138,95898.0,95893.0,0.041712]
[1732468329109,0.0017138,95898.0,95891.0,0.041714]
[1732468329345,0.0017138,95898.0,95896.0,0.041711]
[1732468329569,0.0017138,95898.0,95892.0,0.041713]
[1732468329791,0.1059918,95898.0,95893.0,0.041712]
[1732468330044,0.0017138,95898.0,95889.0,0.0005]
[1732468330499,0.312835,95897.0,95889.0,0.042214]
[1732468330741,0.0017138,95898.0,95889.0,0.0005]
[1732468330988,0.104286,95890.0,95889.0,0.0005]
[1732468335370,0.20630027,95890.0,95889.0,0.0005]
[1732468335853,0.22930027,95890.0,95889.0,0.0005]
[1732468337244,0.127286,95890.0,95889.0,0.0005]
[1732468337463,0.0017138,95898.0,95890.0,0.041714]
[1732468337674,0.208557,95897.0,95891.0,0.041714]
[1732468337884,0.104281,95895.0,95889.0,0.042214]
[1732468338101,0.3009908,95898.0,95890.0,0.041714]
[1732468338346,0.104279,95896.0,95890.0,0.041714]
[1732468338562,0.023,95897.0,95860.0,0.34596682]
[1732468338778,0.023,95894.0,95889.0,0.041714]
[1732468338986,0.127282,95894.0,95889.0,0.041714]
[1732468339202,0.104284,95892.0,95887.0,0.041715]
[1732468339677,0.023,95893.0,95889.0,0.041714]
[1732468339892,0.127283,95893.0,95887.0,0.041715]
[1732468340107,0.023,95886.0,95853.0,0.04173]
[1732468340324,0.023,95883.0,95878.0,0.041719]
[1732468340556,0.023,95883.0,95859.0,0.10201427]
[1732468340557,0.127294,95883.0,95876.0,0.04172]
[1732468340812,0.023,95881.0,95876.0,0.04172]
[1732468341237,0.023,95886.0,95859.0,0.10201427]
[1732468341655,0.025,95886.0,95874.0,0.03129]
[1732468341867,0.025,95886.0,95875.0,0.03129]
[1732468341868,0.104296,95881.0,95875.0,0.03129]
[1732468342076,0.104296,95881.0,95874.0,0.03129]
[1732468342077,0.104297,95880.0,95874.0,0.03129]
[1732468342926,0.2,95896.0,95865.0,0.0763]
[1732468343155,0.023,95895.0,95881.0,0.031288]
[1732468343363,0.023,95888.0,95865.0,0.0763]
[1732468343611,0.023,95888.0,95874.0,0.03129]
[1732468343612,0.023,95884.0,95874.0,0.03129]
[1732468343859,0.104299,95879.0,95874.0,0.03129]
[1732468344076,0.023,95884.0,95865.0,0.0763]
[1732468344300,0.104294,95883.0,95877.0,0.031289]
[1732468344509,0.023,95890.0,95875.0,0.03129]
[1732468344751,0.023,95890.0,95865.0,0.107593]
[1732468344752,0.023,95883.0,95878.0,0.031289]
[1732468344986,0.127294,95883.0,95878.0,0.031289]
[1732468345215,0.104295,95882.0,95877.0,0.03129]
[1732468345429,0.023,95883.0,95876.0,0.03129]
[1732468345631,0.104294,95882.0,95878.0,0.031289]
[1732468345839,0.127289,95887.0,95881.0,0.031288]
[1732468346053,0.023,95885.0,95873.0,0.031291]
[1732468346262,0.06483346,95889.0,95873.0,0.031291]
[1732468346263,0.002,95887.0,95873.0,0.031291]
[1732468346469,0.002,95884.0,95871.0,0.031292]
[1732468346692,0.104297,95880.0,95865.0,0.0763]
[1732468346926,0.023,95883.0,95876.0,0.03129]
[1732468347147,0.104298,95879.0,95873.0,0.031291]
[1732468347555,0.208591,95881.0,95874.0,0.031291]
[1732468347767,0.023,95883.0,95869.0,0.031292]
[1732468347987,0.208587,95883.0,95870.0,0.031292]
[1732468348207,0.104295,95882.0,95872.0,0.031291]
[1732468348442,0.023,95884.0,95874.0,0.03129]
[1732468348689,0.104296,95881.0,95875.0,0.03129]
[1732468348902,0.104298,95879.0,95873.0,0.031291]
[1732468349126,0.104299,95878.0,95872.0,0.031291]
[1732468349346,0.104299,95878.0,95873.0,0.031291]
[1732468349555,0.023,95886.0,95865.0,0.0763]
[1732468349556,0.208591,95882.0,95865.0,0.0763]
[1732468349831,0.1043,95878.0,95871.0,0.031291]
[1732468350061,0.104301,95877.0,95872.0,0.031291]
[1732468350287,0.023,95881.0,95871.0,0.031291]
[1732468350523,0.0786,95884.0,95871.0,0.031291]
[1732468350524,0.104301,95876.0,95871.0,0.031291]
[1732468350749,0.208589,95882.0,95870.0,0.031292]
[1732468351005,0.023,95883.0,95856.0,0.0005]
[1732468351006,0.2,95863.0,95856.0,0.0005]
[1732468351227,0.127322,95857.0,95856.0,0.0005]
[1732468351450,0.104322,95857.0,95856.0,0.0005]
[1732468351896,0.417266,95862.0,95856.0,0.0005]
[1732468351897,0.208633,95862.0,95856.0,0.0005]
[1732468352123,0.104319,95859.0,95856.0,0.0005]
[1732468352392,0.023,95862.0,95856.0,0.0005]
[1732468352393,0.208636,95861.0,95856.0,0.0005]
[1732468352616,0.104322,95857.0,95856.0,0.0005]
[1732468352850,0.104321,95858.0,95856.0,0.0005]
[1732468353111,0.104322,95857.0,95856.0,0.0005]
[1732468353330,0.23196672,95857.0,95856.0,0.0005]
[1732468354051,0.23196672,95857.0,95856.0,0.0013569]
[1732468356232,0.127322,95857.0,95856.0,0.0013569]
[1732468356463,0.129322,95857.0,95856.0,0.0013569]
[1732468356936,0.023,95861.0,95856.0,0.0013569]
[1732468357169,0.104321,95858.0,95856.0,0.0013569]
[1732468357407,0.127322,95857.0,95856.0,0.0013569]
[1732468357635,0.22933627,95857.0,95856.0,0.0013569]
[1732468357869,0.23133627,95857.0,95856.0,0.0013569]
[1732468358108,0.55393627,95857.0,95856.0,0.0013569]
[1732468358368,0.75393627,95857.0,95856.0,0.0013569]
[1732468359562,1.25393627,95857.0,95856.0,0.0013569]
[1732468359796,1.35707396,95857.0,95856.0,0.0013569]
[1732468360780,1.19973425,95857.0,95856.0,0.0013569]
[1732468361018,1.15507396,95857.0,95856.0,0.0013569]
[1732468361242,1.05193627,95857.0,95856.0,0.0013569]
[1732468361689,0.723,95857.0,95856.0,0.0013569]
[1732468362136,0.723,95857.0,95821.0,0.15]
[1732468362137,0.223,95857.0,95821.0,0.15]
[1732468362363,0.2,95854.0,95853.0,0.031297]
[1732468363067,0.2,95856.0,95855.0,0.031297]
[1732468363316,0.43165,95855.0,95833.0,0.031304]
[1732468363564,0.2,95856.0,95837.0,0.04232894]
[1732468363774,0.2,95856.0,95834.0,0.10275803]
[1732468363775,0.2,95856.0,95853.0,0.031297]
[1732468364052,0.2,95856.0,95847.0,0.031299]
[1732468364312,0.2,95856.0,95852.0,0.031298]
[1732468364554,0.1238,95852.0,95822.0,0.0005]
[1732468364772,0.104329,95850.0,95837.0,0.031302]
[1732468364997,0.023,95851.0,95822.0,0.0005]
[1732468364998,0.5,95842.0,95839.0,0.031302]
[1732468365247,0.5,95842.0,95838.0,0.031302]
[1732468365473,0.5,95842.0,95839.0,0.00074393]
[1732468366162,0.5,95842.0,95840.0,0.031302]
[1732468366655,0.5,95842.0,95839.0,0.00074394]
[1732468366656,0.5,95842.0,95841.0,0.031301]
[1732468367137,0.5,95842.0,95841.0,0.03204483]
[1732468367605,0.5,95842.0,95841.0,0.031301]
[1732468367888,0.5,95842.0,95841.0,0.050301]
[1732468368128,0.5,95842.0,95841.0,0.15231527]
[1732468368359,0.5,95842.0,95841.0,0.19414205]
[1732468369953,0.304312,95866.0,95858.0,0.031296]
[1732468370200,0.104313,95865.0,95858.0,0.031296]
[1732468370599,0.2,95866.0,95853.0,0.031297]
[1732468370628,0.2,95866.0,95842.0,0.13331527]
[1732468370779,0.0782,95867.0,95859.0,0.031295]
[1732468371175,0.2,95881.0,95859.0,0.031295]
[1732468371393,0.0782,95875.0,95859.0,0.031295]
[1732468371836,0.0782,95885.0,95859.0,0.15305239]
[1732468372034,0.0782,95885.0,95859.0,0.30230927]
[1732468372214,0.0782,95885.0,95859.0,0.34493976]
[1732468372544,0.0782,95893.0,95859.0,0.34493976]
[1732468373341,0.2,95890.0,95859.0,0.34493976]
[1732468373552,0.408573,95890.0,95859.0,0.32593976]
[1732468373768,0.0456,95881.0,95859.0,0.32593976]
[1732468377547,0.0046,95869.0,95859.0,0.32593976]
[1732468377975,0.0046,95869.0,95859.0,0.22392549]
[1732468378229,0.0046,95869.0,95859.0,0.07392549]
[1732468378876,0.0046,95869.0,95859.0,0.07466863]
[1732468379138,0.0046,95869.0,95859.0,0.07392549]
[1732468379856,0.0046,95869.0,95859.0,0.32593976]
[1732468382379,0.0046,95869.0,95859.0,0.64068853]
[1732468382600,4e-07,95860.0,95859.0,0.35973976]
[1732468382838,0.002886,95869.0,95868.0,0.050293]
[1732468383050,0.0782,95906.0,95897.0,0.031283]
[1732468384144,0.2,95923.0,95897.0,0.031283]
[1732468384365,0.0759,95916.0,95897.0,0.13329727]
[1732468385229,0.0759,95916.0,95897.0,0.28329727]
[1732468385449,0.408469,95938.0,95897.0,0.3258449]
[1732468385450,0.0759,95926.0,95897.0,0.3258449]
[1732468388191,0.0759,95926.0,95897.0,0.3596449]
[1732468388396,0.0492,95931.0,95897.0,0.3596449]
[1732468388647,8e-07,95898.0,95897.0,0.3596449]
[1732468389491,0.083,95935.0,95934.0,0.031271]
[1732468389713,0.0464,95941.0,95934.0,0.031271]
[1732468389928,0.0464,95941.0,95940.0,0.031269]
[1732468390552,0.083,95944.0,95942.0,0.031268]
[1732468390782,0.083,95952.0,95942.0,0.031268]
[1732468392710,0.083,95952.0,95942.0,0.03200905]
[1732468392932,0.083,95952.0,95942.0,0.031268]
[1732468393374,0.187219,95952.0,95942.0,0.031268]
[1732468393673,0.083,95952.0,95942.0,0.031268]
[1732468395841,0.104221,95950.0,95942.0,0.031268]
[1732468396046,0.291438,95952.0,95942.0,0.031268]
[1732468396261,0.002,95950.0,95891.0,0.31347833]
[1732468396466,0.104234,95938.0,95932.0,0.031271]
[1732468396688,0.208461,95941.0,95934.0,0.031271]
[1732468396894,0.208461,95941.0,95923.0,0.15]
[1732468397109,0.002,95940.0,95923.0,0.15]
[1732468397338,0.083,95935.0,95931.0,0.031272]
[1732468397788,0.083,95935.0,95913.0,0.04233436]
[1732468397789,0.083,95935.0,95933.0,0.031271]
[1732468398036,0.083,95935.0,95916.0,0.15]
[1732468398215,0.083,95935.0,95934.0,0.031271]
[1732468398438,0.083,95935.0,95918.0,0.15]
[1732468398672,0.083,95935.0,95933.0,0.031271]
[1732468398892,0.083,95935.0,95934.0,0.031271]
[1732468399305,0.208476,95934.0,95926.0,0.031273]
[1732468399513,0.208478,95933.0,95926.0,0.031273]
[1732468399726,0.10424,95933.0,95926.0,0.031273]
[1732468399938,0.083,95935.0,95929.0,0.031272]
[1732468399939,0.104238,95934.0,95929.0,0.031272]
[1732468400161,0.083,95935.0,95930.0,0.031272]
[1732468400391,0.083,95935.0,95928.0,0.031273]
[1732468400797,0.083,95935.0,95930.0,0.031272]
[1732468401017,0.083,95935.0,95934.0,0.031271]
[1732468401543,0.083,95935.0,95931.0,0.031272]
[1732468401757,0.083,95935.0,95920.0,0.15]
[1732468401971,0.083,95935.0,95931.0,0.031272]
[1732468402181,0.083,95935.0,95932.0,0.031271]
[1732468402824,0.083,95935.0,95932.0,0.062543]
[1732468403040,0.083,95935.0,95932.0,0.031271]
[1732468404331,0.10424,95932.0,95931.0,0.005]
[1732468404988,0.15254,95932.0,95931.0,0.005]
[1732468405396,0.43574,95932.0,95931.0,0.005]
[1732468405609,0.76275427,95932.0,95931.0,0.005]
[1732468409111,0.76266109,95932.0,95931.0,0.005]
[1732468412208,0.76266109,95932.0,95898.0,0.0008554]
[1732468412209,0.2,95904.0,95898.0,0.0008554]
[1732468412418,0.235776,95899.0,95898.0,0.0008554]
[1732468413704,0.458776,95899.0,95898.0,0.0008554]
[1732468416641,0.235776,95899.0,95898.0,0.0008554]
[1732468420976,0.408541,95905.0,95900.0,5.6685]
[1732468421215,0.210531,95909.0,95900.0,5.6685]
[1732468421216,0.25022589,95907.0,95900.0,5.6685]
[1732468421453,0.2,95911.0,95900.0,5.6685]
[1732468421671,0.023,95906.0,95900.0,5.699782]
[1732468421891,0.023,95908.0,95900.0,5.699782]
[1732468422113,0.023,95906.0,95900.0,5.6685]
[1732468422336,0.2,95905.0,95900.0,5.6685]
[1732468422545,0.104272,95903.0,95900.0,5.6685]
[1732468422748,0.104273,95902.0,95900.0,5.6685]
[1732468423163,0.408541,95904.0,95900.0,5.6685]
[1732468423376,0.104274,95901.0,95900.0,5.6685]
[1732468423605,0.106274,95901.0,95900.0,5.6685]
[1732468423823,0.104274,95901.0,95900.0,5.6685]
[1732468424070,0.55418827,95901.0,95900.0,5.6685]
[1732468424339,0.55618827,95901.0,95900.0,5.6685]
[1732468424580,0.70618827,95901.0,95900.0,5.6685]
[1732468424793,0.70618827,95901.0,95900.0,2.6687]
[1732468425008,0.74903143,95901.0,95900.0,2.6687]
[1732468427169,0.74903143,95901.0,95900.0,2.54257339]
[1732468427381,0.74703143,95901.0,95900.0,2.49257339]
[1732468427593,0.74703143,95901.0,95900.0,2.24466339]
[1732468427594,1.14903143,95901.0,95900.0,2.24466339]
[1732468427800,1.14903143,95901.0,95900.0,2.05399839]
[1732468428048,1.14903143,95901.0,95900.0,1.87089839]
[1732468428049,1.02413143,95901.0,95900.0,1.87089839]
[1732468428249,1.02289882,95901.0,95900.0,1.80833339]
[1732468428489,1.02289882,95901.0,95900.0,1.73817215]
[1732468428949,1.02289882,95901.0,95900.0,1.73397461]
[1732468429156,1.1384192,95901.0,95900.0,1.73397461]
[1732468430890,1.1384192,95901.0,95900.0,1.71311961]
[1732468431331,1.1384192,95901.0,95900.0,1.62969961]
[1732468431819,1.1384192,95901.0,95900.0,1.60884461]
[1732468432312,1.1384192,95901.0,95900.0,1.58798961]
[1732468432537,1.1384192,95901.0,95900.0,1.54627961]
[1732468432759,1.1384192,95901.0,95900.0,1.52542461]
[1732468434803,1.4512392,95901.0,95900.0,1.52542461]
[1732468436729,1.33571882,95901.0,95900.0,1.52542461]
[1732468436973,1.44132399,95901.0,95900.0,1.52542461]
[1732468437200,1.41832399,95901.0,95900.0,1.52542461]
[1732468437624,1.41832399,95901.0,95900.0,1.52627991]
[1732468437834,1.42003459,95901.0,95900.0,1.52627991]
[1732468438042,0.76442942,95901.0,95900.0,1.52627991]
[1732468438258,0.96242942,95901.0,95900.0,1.52627991]
[1732468438468,0.96442942,95901.0,95900.0,1.52627991]
[1732468439128,0.98742942,95901.0,95900.0,1.52627991]
[1732468439346,1.18742942,95901.0,95900.0,1.52627991]
[1732468439589,1.33742942,95901.0,95900.0,1.52627991]
[1732468440897,1.43921577,95901.0,95900.0,1.52627991]
[1732468443647,1.43921577,95901.0,95900.0,1.50542491]
[1732468445021,1.43921577,95901.0,95900.0,1.44285991]
[1732468445257,1.43921577,95901.0,95900.0,1.40114991]
[1732468448275,1.42566831,95901.0,95900.0,1.40114991]
[1732468449008,1.42566831,95901.0,95900.0,1.29687491]
[1732468449491,1.42566831,95901.0,95900.0,1.25516491]
[1732468449990,1.42766831,95901.0,95900.0,0.83434783]
[1732468450234,1.33617438,95901.0,95900.0,0.83434783]
[1732468450459,1.44044838,95901.0,95900.0,0.75092783]
[1732468450665,1.44044838,95901.0,95900.0,0.73007283]
[1732468450882,1.44244838,95901.0,95900.0,0.69106283]
[1732468451585,1.44244838,95901.0,95900.0,0.67020783]
[1732468452050,1.44244838,95901.0,95900.0,0.55015784]
[1732468452513,1.44244838,95901.0,95900.0,0.4730584]
[1732468452748,1.44244838,95901.0,95900.0,0.4313484]
[1732468453004,1.44244838,95901.0,95900.0,0.3948384]
[1732468453242,1.44244838,95901.0,95900.0,0.3484564]
[1732468453498,1.44244838,95901.0,95900.0,0.3067464]
[1732468453729,1.44244838,95901.0,95900.0,0.2441814]
[1732468453975,1.44244838,95901.0,95900.0,0.2356724]
[1732468454245,1.70221838,95901.0,95900.0,0.2356724]
[1732468454496,1.70221838,95901.0,95900.0,0.19403588]
[1732468454969,1.70221838,95901.0,95900.0,0.17318088]
[1732468455267,1.70221838,95901.0,95900.0,0.11061588]
[1732468455485,0.329316,95862.0,95861.0,0.0762]
[1732468455728,0.43133027,95862.0,95861.0,0.0762]
[1732468458739,0.42812977,95862.0,95861.0,0.0762]
[1732468459116,0.42812977,95862.0,95859.0,0.0008556]
[1732468459117,0.3261175,95860.0,95859.0,0.0008556]
[1732468459294,0.3261175,95860.0,95834.0,0.0762]
[1732468459295,0.3031455,95835.0,95834.0,0.0762]
[1732468459510,0.40515977,95835.0,95834.0,0.0762]
[1732468459930,0.10201427,95835.0,95834.0,0.0762]
[1732468460132,0.20766464,95835.0,95834.0,0.0762]
[1732468460367,0.40646414,95835.0,95834.0,0.0762]
[1732468460583,0.10201427,95835.0,95834.0,0.0762]
[1732468460807,0.40515977,95835.0,95834.0,0.0762]
[1732468461223,0.20636027,95835.0,95834.0,0.0762]
[1732468461668,0.40646414,95835.0,95834.0,0.0762]
[1732468461870,0.40515977,95835.0,95834.0,0.0762]
[1732468462317,0.42815977,95835.0,95834.0,0.0762]
[1732468462544,0.42815977,95835.0,95834.0,0.0770553]
[1732468464797,0.40515977,95835.0,95834.0,0.0770553]
[1732468465011,0.20636027,95835.0,95834.0,0.0770553]
[1732468465241,0.40646415,95835.0,95834.0,0.0770553]
[1732468465514,0.40515977,95835.0,95834.0,0.0770553]
[1732468467058,0.22936027,95835.0,95834.0,0.0770553]
[1732468467269,0.42815977,95835.0,95834.0,0.0770553]
[1732468467477,0.5239702,95835.0,95834.0,0.0770553]
[1732468467694,0.29899696,95844.0,95834.0,0.0770553]
[1732468467695,0.09032396,95844.0,95834.0,0.0770553]
[1732468467955,0.40515977,95835.0,95834.0,0.0770553]
[1732468469219,0.42815977,95835.0,95834.0,0.0770553]
[1732468469905,0.52195595,95835.0,95834.0,0.0770553]
[1732468471194,0.67195595,95835.0,95834.0,0.0770553]
[1732468471432,0.67195595,95835.0,95834.0,0.0008553]
[1732468472355,0.87195595,95835.0,95834.0,0.0008553]
[1732468472576,0.87195595,95835.0,95834.0,0.0003553]
[1732468472795,1.07195595,95835.0,95834.0,0.0003553]
[1732468473019,1.38477595,95835.0,95834.0,0.0003553]
[1732468473235,1.38677595,95835.0,95834.0,0.0003553]
[1732468473451,1.38477595,95835.0,95834.0,0.0003553]
[1732468475029,1.18477595,95835.0,95834.0,0.0003553]
[1732468475277,1.38477595,95835.0,95834.0,0.0003553]
[1732468476405,0.76297645,95835.0,95834.0,0.0003553]
[1732468476645,0.96177595,95835.0,95834.0,0.0815553]
[1732468476882,0.81177595,95835.0,95834.0,0.0815553]
[1732468477378,0.71797977,95835.0,95834.0,0.1296553]
[1732468478127,0.86797977,95835.0,95834.0,0.1296553]
[1732468478363,0.89097977,95835.0,95834.0,0.1296553]
[1732468479957,0.89097977,95835.0,95834.0,0.6296553]
[1732468481356,0.89097977,95835.0,95834.0,0.5815553]
[1732468484158,0.9809372,95835.0,95834.0,0.5815553]
[1732468484379,0.89097977,95835.0,95834.0,0.5815553]
[1732468484844,0.89269157,95835.0,95834.0,0.5815553]
[1732468489154,1.09269157,95835.0,95834.0,0.5003553]
[1732468491410,1.09216857,95835.0,95834.0,0.5003553]
[1732468492811,1.29216857,95835.0,95834.0,0.5003553]
[1732468494181,1.29416857,95835.0,95834.0,0.5003553]
[1732468494413,1.29216857,95835.0,95834.0,0.5003553]
[1732468495537,1.38046888,95835.0,95834.0,0.5003553]
[1732468496650,1.40143424,95835.0,95834.0,0.5003553]
[1732468500377,1.20143424,95835.0,95834.0,0.5003553]
[1732468500613,0.95746888,95835.0,95834.0,0.5489553]
[1732468500829,0.80746888,95835.0,95834.0,0.6276553]
[1732468501520,0.71916857,95835.0,95834.0,0.6276553]
[1732468502244,1.09216857,95835.0,95834.0,0.5003553]
[1732468502982,0.89216857,95835.0,95834.0,0.5000553]
[1732468503959,0.97838412,95835.0,95834.0,0.5000553]
[1732468504211,0.89216857,95835.0,95834.0,0.5000553]
[1732468504432,1.09216857,95835.0,95834.0,0.5000553]
[1732468505095,1.29216857,95835.0,95834.0,0.5000553]
[1732468508098,1.29416857,95835.0,95834.0,0.4374483]
[1732468508312,1.29416857,95835.0,95834.0,0.3957103]
[1732468509661,1.29216857,95835.0,95834.0,0.3957103]
[1732468511613,0.98392325,95835.0,95834.0,0.5272103]
[1732468511867,0.96092325,95835.0,95834.0,0.5272103]
[1732468512103,0.81092325,95835.0,95834.0,0.5272103]
[1732468512370,0.52036907,95835.0,95834.0,0.5272103]
[1732468512613,0.41602307,95835.0,95834.0,0.5272103]
[1732468512830,0.28792307,95835.0,95834.0,0.5272103]
[1732468513048,0.48672257,95835.0,95834.0,0.5272103]
[1732468513258,0.28792307,95835.0,95834.0,0.5272103]
[1732468513718,0.1987995,95852.0,95834.0,0.5272103]
[1732468513962,0.104329,95850.0,95842.0,0.052168]
[1732468514201,0.104336,95844.0,95835.0,0.0811]
[1732468514444,0.104331,95849.0,95840.0,0.052169]
[1732468514662,0.00130414,95851.0,95841.0,0.052169]
[1732468514907,0.104333,95847.0,95837.0,0.052171]
[1732468515152,0.023,95844.0,95836.0,0.0811]
[1732468515380,0.104341,95840.0,95836.0,0.0811]
[1732468515629,0.127341,95839.0,95836.0,0.0811]
[1732468515872,0.104342,95838.0,95836.0,0.0811]
[1732468516077,0.023,95841.0,95836.0,0.0811]
[1732468516305,0.23298328,95841.0,95836.0,0.0811]
[1732468516517,0.023,95837.0,95836.0,0.0811]
[1732468516734,0.023,95839.0,95836.0,0.0811]
[1732468517157,0.023,95841.0,95836.0,0.0811]
[1732468517624,0.25977,95886.0,95842.0,0.052168]
[1732468517625,0.02430428,95848.0,95842.0,0.052168]
[1732468517631,0.1987995,95852.0,95840.0,0.05217]
[1732468517874,0.1987995,95852.0,95846.0,0.052166]
[1732468518108,0.1987995,95852.0,95836.0,0.0811]
[1732468518342,0.1987995,95852.0,95840.0,0.05217]
[1732468518551,0.3031265,95852.0,95846.0,0.052166]
[1732468518767,0.3031265,95852.0,95842.0,0.052168]
[1732468518768,0.023,95851.0,95836.0,0.0811]
[1732468518980,0.023,95845.0,95836.0,0.0811]
[1732468519497,0.09032396,95860.0,95834.0,0.4447103]
[1732468519498,0.1987995,95859.0,95850.0,0.052164]
[1732468519710,0.023,95850.0,95845.0,0.0811]
[1732468519939,0.127329,95850.0,95845.0,0.0811]
[1732468520172,0.104334,95846.0,95845.0,0.0811]
[1732468520862,0.023,95852.0,95845.0,0.0811]
[1732468521103,0.104328,95851.0,95845.0,0.133267]
[1732468521386,0.023,95850.0,95845.0,0.133267]
[1732468521619,0.023,95851.0,95845.0,0.133267]
[1732468521858,0.104328,95851.0,95845.0,0.133267]
[1732468522078,0.0017118,95853.0,95845.0,0.0811]
[1732468522305,0.2005113,95853.0,95849.0,0.052165]
[1732468522558,0.2005113,95853.0,95846.0,0.052167]
[1732468522559,0.2005113,95853.0,95848.0,0.052165]
[1732468522792,0.2005113,95853.0,95846.0,0.052167]
[1732468523025,0.2005113,95853.0,95852.0,0.052163]
[1732468523026,0.0017118,95853.0,95852.0,0.052163]
[1732468523255,0.0017118,95853.0,95850.0,0.052164]
[1732468523476,0.0017118,95853.0,95852.0,0.052163]
[1732468523956,0.0017118,95853.0,95852.0,0.100063]
[1732468524413,0.0017118,95853.0,95852.0,0.179263]
[1732468527682,0.0017118,95853.0,95852.0,0.1271]
[1732468528351,0.0017118,95853.0,95852.0,0.179263]
[1732468528607,0.023,95852.0,95836.0,0.0792]
[1732468528832,0.208664,95848.0,95838.0,0.052171]
[1732468529079,0.127337,95844.0,95837.0,0.052171]
[1732468529313,0.023,95844.0,95839.0,0.05217]
[1732468529531,0.023,95852.0,95849.0,0.052165]
[1732468529736,0.023,95852.0,95840.0,0.0792]
[1732468529737,0.023,95852.0,95851.0,0.052164]
[1732468530841,0.1987995,95864.0,95852.0,0.052163]
[1732468531059,0.09032396,95890.0,95865.0,0.052156]
[1732468531060,0.521435,95889.0,95865.0,0.052156]
[1732468531288,0.104308,95870.0,95866.0,0.0792]
[1732468531496,0.1987995,95867.0,95866.0,0.0792]
[1732468531725,0.3031105,95867.0,95866.0,0.0792]
[1732468532419,0.3261105,95867.0,95866.0,0.0792]
[1732468534494,0.127311,95867.0,95866.0,0.0792]
[1732468534729,0.3261105,95867.0,95866.0,0.0792]
[1732468534982,0.2217995,95867.0,95866.0,0.0792]
[1732468535444,0.3261105,95867.0,95866.0,0.0792]
[1732468536721,0.023,95868.0,95866.0,0.0792]
[1732468536816,0.1987995,95867.0,95866.0,0.0792]
[1732468537077,0.023,95867.0,95866.0,0.0792]
[1732468537306,0.3261105,95867.0,95866.0,0.0792]
[1732468538425,0.023,95868.0,95866.0,0.0792]
[1732468538655,0.2217995,95868.0,95866.0,0.0792]
[1732468538867,0.127311,95867.0,95866.0,0.0792]
[1732468540642,0.127325,95854.0,95853.0,0.0803]
[1732468541314,0.023,95861.0,95853.0,0.0803]
[1732468541547,0.023,95857.0,95853.0,0.0803]
[1732468541766,0.023,95854.0,95853.0,0.0803]
[1732468542219,0.127325,95854.0,95853.0,0.0803]
[1732468542909,0.22933927,95854.0,95853.0,0.0803]
[1732468543158,0.127339,95841.0,95840.0,0.0803]
[1732468543841,0.127339,95841.0,95835.0,0.0008559]
[1732468543842,0.104344,95836.0,95835.0,0.0008559]
[1732468544054,0.127344,95836.0,95835.0,0.0008559]
[1732468548102,0.104344,95836.0,95835.0,0.0008559]
[1732468548372,0.127344,95836.0,95835.0,0.0008559]
[1732468551243,0.14670939,95841.0,95835.0,0.0008559]
[1732468551465,0.023,95839.0,95835.0,0.0008559]
[1732468551889,0.104344,95836.0,95835.0,0.0008559]
[1732468552165,0.127344,95836.0,95835.0,0.0008559]
[1732468553234,0.104344,95836.0,95835.0,0.0008559]
[1732468554619,0.14752307,95836.0,95835.0,0.0008559]
[1732468556211,0.104344,95837.0,95835.0,0.0008559]
[1732468556461,0.231678,95841.0,95834.0,0.3915662]
[1732468556683,0.104346,95835.0,95834.0,0.3915662]
[1732468557142,0.023,95841.0,95834.0,0.3915662]
[1732468557367,0.104346,95835.0,95834.0,0.3915662]
[1732468558044,0.023,95838.0,95834.0,0.3915662]
[1732468558274,0.104345,95836.0,95834.0,0.3915662]
[1732468558521,0.1447998,95842.0,95834.0,0.3915662]
[1732468558522,0.023,95841.0,95834.0,0.3915662]
[1732468558737,0.023,95839.0,95834.0,0.3915662]
[1732468558972,0.104345,95836.0,95834.0,0.3915662]
[1732468559196,0.023,95835.0,95834.0,0.3915662]
[1732468559668,0.023,95838.0,95834.0,0.3915662]
[1732468559936,0.127346,95835.0,95834.0,0.3915662]
[1732468563397,0.023,95841.0,95834.0,0.3915662]
[1732468563620,0.023,95837.0,95834.0,0.3915662]
[1732468564087,0.023,95835.0,95834.0,0.3915662]
[1732468564536,0.023,95839.0,95838.0,0.052171]
[1732468564770,0.1987995,95848.0,95842.0,0.052168]
[1732468565007,0.0017114,95853.0,95834.0,0.4374662]
[1732468565243,0.0017114,95853.0,95852.0,0.052163]
[1732468565493,0.0017114,95853.0,95852.0,0.133663]
[1732468565758,0.0017114,95853.0,95852.0,0.179563]
[1732468568587,0.0017114,95853.0,95852.0,0.28232069]
[1732468568829,0.0017114,95853.0,95852.0,0.28157727]